bitfinex/quotes_ETHUSD_20220201
["timestamp","ask_amount","ask_price","bid_price","bid_amount"]
[1643692100297,1.483186,2742.7,2742.4,0.146057]
[1643692103946,1.483186,2742.7,2742.3,1.54742679]
[1643692107231,1.483186,2742.7,2742.3,1.24742679]
[1643692107432,1.483186,2742.7,2742.3,1.54742679]
[1643692108233,1.483186,2742.7,2742.3,0.3]
[1643692111750,1.483186,2742.7,2742.4,2.11423055]
[1643692111950,1.483186,2742.7,2742.4,3.93694055]
[1643692112147,1.483186,2742.7,2742.4,5.23694055]
[1643692112391,1.483186,2742.7,2742.4,3.22961962]
[1643692112713,1.483186,2742.7,2742.5,0.91136]
[1643692112891,1.483186,2742.7,2742.6,0.77311422]
[1643692113290,1.483186,2742.7,2742.6,1.07311422]
[1643692114833,1.483186,2742.7,2742.6,2.99842309]
[1643692114995,1.48174493,2742.7,2742.6,3.99842309]
[1643692115395,1.48174493,2742.7,2742.6,2.07311422]
[1643692116839,1.48174493,2742.7,2742.6,1.07311422]
[1643692131040,1.48174493,2742.7,2742.6,3.00097491]
[1643692131242,1.48174493,2742.7,2742.6,4.00097491]
[1643692131440,1.48174493,2742.7,2742.6,2.07311422]
[1643692131644,1.48174493,2742.7,2742.6,1.07311422]
[1643692131840,1.48174493,2742.7,2742.6,2.07311422]
[1643692132045,1.48174493,2742.7,2742.6,1.07311422]
[1643692132242,1.48174493,2742.7,2742.6,2.07311422]
[1643692132643,1.48174493,2742.7,2742.6,1.07311422]
[1643692133649,1.48174493,2742.7,2742.6,3.59711422]
[1643692133847,0.1822,2743.5,2742.7,6.6]
[1643692134050,0.1822,2743.6,2742.9,0.91119]
[1643692134246,1.483186,2743.7,2743.1,0.91118]
[1643692134447,1.483186,2743.7,2743.1,1.21118]
[1643692134650,1.483186,2743.7,2743.1,1.51118]
[1643692135321,1.483186,2743.7,2743.4,0.94872547]
[1643692135523,1.483186,2743.7,2743.4,1.24872547]
[1643692135720,1.483186,2743.7,2743.4,1.54872547]
[1643692136335,1.483186,2743.7,2743.6,0.43595544]
[1643692136522,1.350836,2743.7,2743.6,0.43595544]
[1643692136721,1.350836,2743.7,2743.6,0.73595544]
[1643692139190,1.327686,2743.7,2743.6,0.73595544]
[1643692140156,1.327686,2743.7,2743.6,0.3]
[1643692140659,1.327686,2743.7,2743.4,1.54872547]
[1643692141657,1.327686,2743.7,2743.4,1.24872547]
[1643692141858,1.327686,2743.7,2743.4,1.54872547]
[1643692142057,1.327686,2743.7,2743.6,0.38911666]
[1643692142701,4.077686,2743.7,2743.6,0.38911666]
[1643692143296,4.259886,2743.7,2743.6,0.38911666]
[1643692143496,4.259886,2743.7,2743.4,0.3]
[1643692143797,0.1822,2743.6,2742.9,1.3]
[1643692143997,0.1822,2743.6,2742.9,1.6]
[1643692144595,0.13391,2743.6,2743.4,0.31652799]
[1643692144795,4.077686,2743.7,2743.4,0.31652799]
[1643692145008,25.447686,2743.7,2743.2,1.09890642]
[1643692145198,25.447686,2743.7,2743.2,1.39890642]
[1643692145599,4.077686,2743.7,2743.2,1.39890642]
[1643692146053,4.077686,2743.7,2743.4,0.41265016]
[1643692146653,1.327686,2743.7,2743.4,0.71265016]
[1643692147255,1.327686,2743.7,2743.4,1.01265016]
[1643692147660,1.327686,2743.7,2743.4,1.01114016]
[1643692160807,1.53610111,2743.6,2743.4,1.01114016]
[1643692166690,1.53610111,2743.6,2743.2,1.58110642]
[1643692166891,1.53610111,2743.6,2743.2,1.39890642]
[1643692168569,1.53490773,2743.6,2743.3,0.43798717]
[1643692169363,1.327686,2743.7,2743.3,0.43798717]
[1643692169770,1.327686,2743.7,2743.2,1.39890642]
[1643692172168,1.327686,2743.7,2743.5,0.38578703]
[1643692173001,1.327686,2743.7,2743.2,1.39890642]
[1643692174404,1.327686,2743.7,2743.4,0.41361506]
[1643692174605,1.327686,2743.7,2743.2,1.39890642]
[1643692176047,1.327686,2743.7,2743.3,0.38123527]
[1643692176248,1.327686,2743.7,2743.3,0.68123527]
[1643692177693,1.327686,2743.7,2743.3,1.37565793]
[1643692178053,1.327686,2743.7,2743.3,1.67565793]
[1643692179899,1.327686,2743.7,2743.3,0.98123527]
[1643692180104,1.327686,2743.7,2743.3,0.68123527]
[1643692187599,1.327686,2743.7,2743.3,0.3]
[1643692188500,1.53621369,2743.6,2743.3,0.3]
[1643692192458,3.01939969,2743.6,2743.3,0.3]
[1643692192663,1.53621369,2743.5,2743.3,0.3]
[1643692193358,1.53506507,2743.5,2743.3,0.3]
[1643692193760,1.53506507,2743.5,2743.2,1.0528185]
[1643692194160,1.53506507,2743.5,2743.2,1.3528185]
[1643692196104,1.53506507,2743.5,2743.2,0.6]
[1643692196303,1.53506507,2743.5,2743.1,0.69419235]
[1643692202505,1.53506507,2743.5,2743.1,0.3]
[1643692202903,1.53506507,2743.5,2742.9,0.3]
[1643692203105,1.53506507,2743.5,2742.8,1.6]
[1643692203304,1.53506507,2743.5,2742.8,0.6]
[1643692203503,1.53506507,2743.5,2743.2,0.33325312]
[1643692203704,1.53506507,2743.5,2743.2,0.63325312]
[1643692204304,1.53506507,2743.5,2743.2,0.3]
[1643692204508,1.53506507,2743.5,2742.9,0.9953557]
[1643692204705,0.71515789,2743.3,2742.9,0.3]
[1643692204910,0.71515789,2743.3,2742.8,0.746043]
[1643692205107,0.71515789,2743.3,2742.8,0.446043]
[1643692205306,0.71515789,2743.3,2742.8,0.3]
[1643692205511,0.71515789,2743.3,2742.9,0.37180383]
[1643692205709,0.71515789,2743.3,2742.9,0.67180383]
[1643692205910,21.37,2743.5,2742.9,0.67180383]
[1643692207054,0.73207601,2743.4,2742.9,0.67180383]
[1643692210301,1.483186,2743.6,2742.9,0.67180383]
[1643692212404,2.30602962,2743.6,2742.9,0.67180383]
[1643692213408,1.53630562,2743.5,2742.9,0.67180383]
[1643692213651,1.53630562,2743.5,2742.8,1.6]
[1643692213851,1.53630562,2743.5,2742.8,0.6]
[1643692214051,1.53630562,2743.5,2742.8,0.3]
[1643692214655,1.53630562,2743.5,2743.2,0.33777314]
[1643692215048,1.53630562,2743.5,2743.2,0.63777314]
[1643692216051,1.53542609,2743.5,2743.2,0.63777314]
[1643692220706,1.53542609,2743.5,2743.2,0.33777314]
[1643692220940,1.53542609,2743.5,2743.2,0.63777314]
[1643692221153,1.53542609,2743.5,2743.0,0.3]
[1643692221349,1.53542609,2743.5,2742.9,1.4913036]
[1643692222556,1.53542609,2743.5,2742.9,1.92933735]
[1643692223457,2.44698139,2743.5,2742.9,1.03803375]
[1643692223658,0.9115553,2743.5,2742.4,3.06518495]
[1643692224457,0.8256963,2742.9,2742.4,3.85729988]
[1643692224659,0.8256963,2742.9,2742.7,0.43518018]
[1643692225307,0.8256963,2742.9,2742.7,0.73518018]
[1643692225507,1.3162,2743.4,2742.7,0.73518018]
[1643692225710,1.3162,2743.4,2742.8,0.3]
[1643692226607,0.67289107,2743.1,2742.8,0.25]
[1643692229856,1.3162,2743.4,2742.8,0.25]
[1643692231059,0.94668031,2743.2,2742.8,0.25]
[1643692234120,0.94668031,2743.2,2742.7,0.43518018]
[1643692234418,0.1822,2743.1,2742.7,0.43518018]
[1643692234719,1.12888031,2743.2,2742.7,0.43518018]
[1643692235516,1.90414905,2743.1,2742.7,0.43518018]
[1643692235720,0.1822,2743.0,2742.7,0.43518018]
[1643692236175,1.5364811,2742.9,2742.7,0.43518018]
[1643692236770,1.5364811,2742.9,2742.7,0.73518018]
[1643692236972,1.5364811,2742.9,2742.8,0.3]
[1643692238377,1.53648681,2742.9,2742.8,0.3]
[1643692238576,0.1822,2743.0,2742.8,0.3]
[1643692239177,1.53648498,2742.9,2742.8,0.3]
[1643692239379,3.57218485,2742.9,2742.8,0.3]
[1643692239578,3.57218485,2742.9,2742.4,0.3]
[1643692239814,2.31121896,2743.1,2742.3,0.7822]
[1643692240009,1.53654041,2743.0,2742.3,0.7822]
[1643692240411,1.53654041,2743.0,2742.8,0.38650096]
[1643692240615,2.44810971,2743.0,2742.8,0.38650096]
[1643692240812,1.53654041,2742.9,2742.8,0.38650096]
[1643692241011,1.53654041,2742.9,2742.5,0.70098863]
[1643692241811,1.53654041,2742.9,2742.5,1.30098863]
[1643692242012,1.53654041,2742.8,2742.5,1.30098863]
[1643692242215,0.1822,2743.1,2742.7,0.39347727]
[1643692242417,1.53654513,2743.0,2742.5,1.30098863]
[1643692242617,1.87428243,2742.9,2742.5,0.6]
[1643692242818,1.53654513,2742.8,2742.0,1.1822]
[1643692243022,2.25244793,2743.1,2742.0,0.4822]
[1643692243253,2.44812568,2743.0,2742.0,1.58879495]
[1643692243419,1.53656478,2742.9,2742.0,1.58879495]
[1643692243657,0.79666415,2742.7,2742.5,0.37213641]
[1643692243855,0.79666415,2742.7,2742.5,0.67213641]
[1643692244454,1.92929097,2742.9,2742.5,0.67213641]
[1643692244855,1.92929097,2742.9,2742.5,0.3]
[1643692245056,1.92929097,2742.9,2742.2,0.6]
[1643692245057,1.71876715,2742.8,2742.2,0.6]
[1643692245264,3.54141367,2742.7,2742.0,0.6]
[1643692245461,2.05815129,2742.6,2742.0,1.6]
[1643692245662,2.36144528,2742.9,2741.9,1.2354]
[1643692245863,1.53662677,2742.8,2741.9,1.2354]
[1643692246065,0.72660473,2742.5,2742.2,0.34372402]
[1643692247065,0.72660473,2742.5,2742.2,0.3]
[1643692247305,0.72660473,2742.5,2741.8,0.3]
[1643692247511,0.72660473,2742.5,2741.7,0.6]
[1643692247716,0.72660473,2742.5,2741.7,0.3]
[1643692248111,0.72660473,2742.5,2741.6,1.7822]
[1643692248311,0.72660473,2742.5,2742.1,0.43282951]
[1643692248713,0.72533478,2742.5,2742.1,0.73282951]
[1643692249012,0.72533478,2742.5,2742.1,1.03282951]
[1643692249216,3.25172802,2742.7,2742.1,1.03282951]
[1643692250312,0.80513365,2742.4,2742.1,1.03282951]
[1643692250713,3.25172802,2742.7,2742.1,1.03282951]
[1643692250912,1.53669806,2742.6,2742.1,1.03282951]
[1643692251352,3.25172802,2742.7,2742.1,1.03282951]
[1643692251757,0.87320053,2742.4,2742.1,1.03282951]
[1643692251951,3.25172802,2742.7,2742.1,1.03282951]
[1643692253357,0.8128177,2742.5,2742.1,1.03282951]
[1643692254158,0.8128177,2742.5,2742.1,0.6]
[1643692254364,0.8128177,2742.5,2741.9,0.446086]
[1643692254802,0.8128177,2742.5,2741.9,0.3]
[1643692255001,1.87953417,2742.4,2741.9,0.3]
[1643692255301,0.8128177,2742.5,2741.9,0.66158923]
[1643692255503,0.9950177,2742.5,2741.9,0.66158923]
[1643692259662,0.8128177,2742.5,2741.9,0.66158923]
[1643692260565,0.70646862,2742.0,2741.9,0.3]
[1643692260965,0.70646862,2742.0,2741.7,0.7822]
[1643692261164,0.70646862,2742.0,2741.7,0.1822]
[1643692261565,5.79646349,2742.6,2741.7,0.1822]
[1643692261767,1.53678242,2742.5,2741.8,0.68085467]
[1643692262169,5.79646349,2742.6,2741.8,0.68085467]
[1643692262419,1.53677569,2742.5,2741.8,0.68085467]
[1643692262907,0.73529525,2742.3,2741.8,0.68085467]
[1643692264108,5.74460257,2742.6,2741.8,0.68085467]
[1643692264309,5.67266119,2742.6,2741.8,0.68085467]
[1643692264547,5.67415425,2742.6,2741.8,0.68085467]
[1643692265507,2.39195644,2742.5,2741.8,0.68085467]
[1643692265723,1.90745052,2742.4,2741.8,0.68085467]
[1643692265907,0.85519936,2742.5,2741.8,0.68085467]
[1643692266688,0.85519936,2742.5,2741.8,1.16837417]
[1643692266851,1.86972232,2742.4,2741.8,1.16837417]
[1643692268266,0.85519936,2742.5,2741.8,1.16837417]
[1643692272318,1.87585421,2742.4,2741.8,1.16837417]
[1643692272919,0.85519936,2742.5,2741.8,1.16837417]
[1643692273118,1.86637768,2742.4,2741.8,1.16837417]
[1643692273558,0.85519936,2742.5,2741.8,1.16837417]
[1643692274356,1.89043209,2742.4,2741.8,1.16837417]
[1643692275200,0.85519936,2742.5,2741.8,1.16837417]
[1643692275355,1.53681762,2742.4,2741.8,1.16837417]
[1643692275757,0.85519936,2742.5,2741.8,1.16837417]
[1643692276558,3.41907415,2742.4,2741.8,1.16837417]
[1643692276759,1.88226299,2742.4,2741.8,1.16837417]
[1643692277159,0.85519936,2742.5,2741.8,1.16837417]
[1643692277404,1.53681225,2742.4,2741.8,1.16837417]
[1643692278206,3.42452089,2742.4,2741.8,1.16837417]
[1643692278445,1.88770864,2742.4,2741.8,1.16837417]
[1643692279626,0.85519936,2742.5,2741.8,1.16837417]
[1643692279807,1.53681969,2742.4,2741.8,1.16837417]
[1643692281252,1.53681969,2742.4,2742.1,0.89705684]
[1643692281653,1.53681969,2742.4,2742.1,1.19705684]
[1643692281853,1.53681969,2742.4,2742.1,0.3]
[1643692282252,1.53681969,2742.4,2741.9,0.3]
[1643692282679,3.6222,2742.6,2741.9,0.4822]
[1643692282865,1.53674133,2742.5,2742.0,2.0]
[1643692283061,4.54438446,2743.1,2742.1,0.1822]
[1643692283062,5.0469,2743.1,2742.1,0.1822]
[1643692283263,5.0469,2743.1,2742.2,0.524]
[1643692283264,1.53660393,2743.0,2742.2,0.524]
[1643692283463,1.53660393,2743.0,2742.4,0.79934626]
[1643692283660,1.53660393,2742.9,2742.6,0.91129]
[1643692283962,11.10709023,2743.6,2742.6,0.91129]
[1643692283963,11.10709023,2743.6,2742.8,1.29049194]
[1643692284161,1.5364877,2743.5,2742.9,1.06209369]
[1643692284459,1.5364877,2743.5,2742.9,2.36209369]
[1643692284914,1.5364877,2743.5,2742.9,3.27338369]
[1643692285114,1.5364877,2743.5,2743.0,0.91129]
[1643692285317,1.5364877,2743.5,2743.1,0.91131]
[1643692285518,1.5364877,2743.5,2743.4,0.9387144]
[1643692285715,1.5364877,2743.5,2743.4,1.2387144]
[1643692286415,1.5364877,2743.5,2743.4,1.1387144]
[1643692289770,1.5364877,2743.5,2743.4,0.9387144]
[1643692291770,1.5364877,2743.5,2743.4,1.2387144]
[1643692292321,1.483186,2743.6,2743.5,0.91111]
[1643692293719,1.483186,2743.6,2743.5,1.09331]
[1643692294118,1.483186,2743.6,2743.5,2.09331]
[1643692294326,0.68880423,2744.7,2743.5,2.09331]
[1643692294327,0.68880423,2744.7,2743.9,0.9109]
[1643692294522,1.53588287,2744.6,2744.0,0.524]
[1643692294723,0.68880423,2745.1,2744.0,1.124]
[1643692294724,1.53356292,2744.5,2744.0,1.124]
[1643692294921,0.1821,2745.1,2744.0,1.124]
[1643692295121,2.0,2745.1,2744.0,1.124]
[1643692295321,0.1821,2745.2,2744.0,1.124]
[1643692295322,0.1821,2745.2,2744.8,1.82135]
[1643692295523,2.1821,2745.5,2744.8,2.12135]
[1643692295725,2.1821,2745.5,2744.8,3.42135]
[1643692295920,2.1821,2745.5,2744.8,1.51067]
[1643692296159,0.1821,2745.5,2745.4,0.35055745]
[1643692296359,0.1821,2745.5,2745.2,0.32938473]
[1643692296758,0.1821,2745.5,2745.2,0.62938473]
[1643692297160,0.1821,2745.6,2745.2,0.62938473]
[1643692298167,0.1821,2745.6,2745.2,0.3]
[1643692298370,0.1821,2745.8,2744.8,1.6]
[1643692298592,0.1821,2745.8,2744.8,0.3]
[1643692298768,0.1821,2745.8,2744.7,2.71439005]
[1643692298970,0.1821,2745.8,2744.9,2.91049]
[1643692299171,0.1821,2746.1,2745.1,0.41074208]
[1643692299370,0.1821,2746.5,2745.3,0.91036]
[1643692299570,7.6441,2746.6,2745.4,2.524]
[1643692299814,10.10053824,2746.6,2745.5,0.3]
[1643692300016,0.1819,2746.5,2745.5,1.824]
[1643692300214,0.1819,2746.5,2745.5,0.824]
[1643692300416,1.04814948,2746.5,2745.9,0.75330497]
[1643692300615,1.04814948,2746.5,2745.5,0.824]
[1643692300819,1.04814948,2746.5,2745.9,0.3]
[1643692301219,3.50458772,2746.5,2745.4,1.3]
[1643692301426,0.18226,2746.4,2745.5,0.3]
[1643692301622,0.1819,2746.3,2745.4,1.3]
[1643692302021,0.71513482,2746.0,2745.6,0.35020325]
[1643692302225,0.71513482,2746.0,2745.6,0.65020325]
[1643692302424,2.50863942,2745.9,2744.8,4.16595]
[1643692302625,0.18226,2745.8,2744.6,1.82107]
[1643692302831,0.1821,2745.7,2744.7,3.5]
[1643692303021,2.40213461,2745.7,2744.7,3.5]
[1643692303225,2.40213461,2745.7,2745.0,0.92246005]
[1643692303423,0.1821,2745.7,2745.5,0.34732841]
[1643692303670,0.1821,2745.7,2745.0,0.92246005]
[1643692303671,0.1821,2745.8,2745.0,0.92246005]
[1643692304267,0.1821,2745.8,2745.0,1.52246005]
[1643692305269,0.1821,2745.9,2745.0,2.43300005]
[1643692305672,0.14115247,2745.9,2745.0,2.43300005]
[1643692305871,0.14115247,2745.9,2745.6,0.3578052]
[1643692306972,0.19424483,2746.0,2745.6,0.3578052]
[1643692307418,0.19424483,2746.0,2745.1,1.1819]
[1643692307617,0.73635913,2745.7,2745.1,1.41662264]
[1643692307819,0.19424483,2746.0,2745.1,2.41662264]
[1643692308822,0.19424483,2746.0,2745.1,1.41662264]
[1643692309019,0.19424483,2746.0,2745.1,2.41662264]
[1643692309218,0.83276389,2746.0,2745.8,0.42301245]
[1643692309419,3.05,2745.9,2745.8,0.42301245]
[1643692310518,5.00342571,2745.9,2745.1,2.41662264]
[1643692310919,3.05,2745.9,2745.1,2.41662264]
[1643692311760,3.2321,2745.9,2745.1,2.41662264]
[1643692311961,1.90534351,2745.8,2745.1,2.41662264]
[1643692312566,1.90534351,2745.8,2745.1,1.41662264]
[1643692312768,1.90534351,2745.8,2745.3,0.31859874]
[1643692312966,0.1821,2745.7,2745.3,0.31859874]
[1643692313166,2.08744351,2745.8,2745.3,0.31859874]
[1643692313366,0.1821,2745.8,2745.3,0.31859874]
[1643692313668,2.14375703,2745.8,2745.3,0.31859874]
[1643692314267,0.1821,2745.8,2745.3,0.31859874]
[1643692314491,2.14087295,2745.8,2745.3,0.31859874]
[1643692314669,0.1821,2745.8,2745.3,0.31859874]
[1643692315117,0.1821,2745.8,2745.3,0.61859874]
[1643692315517,3.05,2745.9,2745.3,0.61859874]
[1643692316116,3.78198713,2745.9,2745.3,0.61859874]
[1643692316719,1.98297957,2745.8,2745.3,0.61859874]
[1643692316920,3.2321,2745.9,2745.3,0.61859874]
[1643692317122,3.05,2745.9,2745.3,0.61859874]
[1643692319164,3.05,2745.9,2745.2,0.4821]
[1643692319563,3.05,2745.9,2745.2,1.39257]
[1643692319809,3.05,2745.9,2745.2,2.39257]
[1643692321362,3.05,2745.9,2745.5,0.41974929]
[1643692321766,3.05,2745.9,2745.5,0.71974929]
[1643692322062,3.05,2745.9,2745.5,1.01974929]
[1643692327768,3.05,2745.9,2745.5,0.3]
[1643692328270,1.92060418,2745.8,2745.5,0.3]
[1643692328668,1.90414905,2745.8,2745.5,0.3]
[1643692328870,3.05,2745.9,2745.5,0.3]
[1643692333016,1.53523812,2745.8,2745.5,0.3]
[1643692334571,1.2356,2746.2,2745.6,0.1821]
[1643692334777,0.1821,2746.4,2745.6,0.1821]
[1643692334778,1.53503612,2746.1,2745.6,0.1821]
[1643692334967,1.53503612,2746.0,2745.6,0.1821]
[1643692335168,0.1821,2746.4,2745.6,0.1821]
[1643692335367,1.5350019,2746.3,2745.6,0.1821]
[1643692335568,1.5350019,2746.3,2745.9,0.34103504]
[1643692335768,1.5350019,2746.3,2745.9,0.69285066]
[1643692336570,1.5350019,2746.3,2745.9,0.99285066]
[1643692336772,1.5350019,2746.3,2745.9,1.29285066]
[1643692337419,1.5350019,2746.2,2745.9,1.29285066]
[1643692337616,1.5350019,2746.1,2745.9,1.29285066]
[1643692337822,1.5350019,2746.0,2745.9,1.29285066]
[1643692338418,1.5350019,2746.4,2745.9,1.29285066]
[1643692338621,1.5350019,2746.3,2745.9,1.29285066]
[1643692338820,1.5350019,2746.2,2745.9,1.29285066]
[1643692339020,1.5350019,2746.1,2745.9,1.29285066]
[1643692339221,1.5350019,2746.0,2745.9,1.29285066]
[1643692339419,2.22380613,2746.4,2745.9,1.29285066]
[1643692339824,1.5350019,2746.4,2745.9,1.29285066]
[1643692340036,2.22380613,2746.4,2745.9,1.29285066]
[1643692340819,1.5350019,2746.3,2745.9,1.29285066]
[1643692341081,1.5350019,2746.2,2745.9,1.29285066]
[1643692341269,1.5350019,2746.1,2745.9,1.29285066]
[1643692341471,1.5350019,2746.0,2745.9,1.29285066]
[1643692341670,1.5350019,2746.0,2745.9,1.29171793]
[1643692341970,2.22380613,2746.4,2745.9,1.29171793]
[1643692342171,1.5350019,2746.4,2745.9,1.47361793]
[1643692342974,1.5350019,2746.3,2746.0,0.31970295]
[1643692343194,0.68880423,2746.5,2746.0,0.31970295]
[1643692343195,1.5350019,2746.2,2746.0,0.31970295]
[1643692343384,2.22380613,2746.5,2746.1,0.1819]
[1643692343583,1.53473509,2746.4,2746.1,1.61603]
[1643692343772,0.1819,2747.0,2746.1,4.6241525]
[1643692343773,1.53473509,2746.3,2746.1,4.6241525]
[1643692343976,0.68880423,2747.0,2746.2,2.10714285]
[1643692344174,0.68880423,2747.0,2746.3,0.7059]
[1643692344377,0.68880423,2747.2,2746.5,0.91]
[1643692344582,0.68880423,2747.2,2746.8,0.90997]
[1643692344817,0.68880423,2747.2,2746.9,0.3]
[1643692346022,0.87070423,2747.3,2746.9,0.3]
[1643692346718,0.77070423,2747.3,2746.9,0.3]
[1643692347725,0.77070423,2747.3,2746.8,0.85757193]
[1643692347925,0.0819,2747.3,2746.8,0.41208016]
[1643692348869,0.0819,2747.3,2746.8,1.32205016]
[1643692349268,0.0819,2747.3,2746.9,0.3]
[1643692349673,0.0819,2747.3,2746.9,1.2099]
[1643692351872,4.7207,2747.4,2746.9,1.2099]
[1643692351873,4.9026,2747.4,2746.9,1.2099]
[1643692352076,4.7207,2747.4,2746.9,1.2099]
[1643692352311,4.7207,2747.4,2746.9,0.3]
[1643692353118,0.3707728,2747.3,2746.9,0.3]
[1643692353416,4.7207,2747.4,2746.9,0.3]
[1643692357263,4.7207,2747.4,2746.9,0.25]
[1643692358064,0.40351688,2747.3,2746.9,0.25]
[1643692358663,0.40351688,2747.3,2746.7,2.3017]
[1643692359265,0.40351688,2747.3,2746.8,0.3]
[1643692360131,4.7207,2747.4,2746.8,0.3]
[1643692361736,4.7207,2747.4,2746.8,0.69382909]
[1643692361935,4.7207,2747.4,2746.8,0.3]
[1643692362935,4.7207,2747.4,2746.9,1.81986]
[1643692363138,4.7207,2747.4,2747.0,0.3]
[1643692363336,4.7207,2747.4,2747.0,0.6]
[1643692363566,3.5882,2747.4,2747.0,0.6]
[1643692363971,1.3705,2747.7,2747.0,0.6]
[1643692364167,1.53431667,2747.6,2747.1,0.727053]
[1643692365972,1.53431667,2747.6,2747.1,1.636923]
[1643692366173,1.53431667,2747.6,2747.1,2.846773]
[1643692366371,1.53431667,2747.6,2747.1,3.146773]
[1643692366770,1.53431667,2747.6,2747.2,1.99092344]
[1643692366971,1.1886,2747.7,2747.2,1.99092344]
[1643692367172,1.1886,2747.7,2747.2,2.90071344]
[1643692367618,1.1886,2747.7,2747.4,0.40707638]
[1643692367819,3.9287,2748.1,2747.4,1.91685638]
[1643692368020,1.53417831,2748.0,2747.4,1.91685638]
[1643692368322,1.53417831,2748.0,2747.4,1.50978]
[1643692368819,1.53417831,2748.0,2747.4,1.20978]
[1643692369217,1.53417831,2748.0,2747.4,1.50978]
[1643692369617,1.53417831,2748.0,2747.4,0.90978]
[1643692369816,1.53417831,2748.0,2747.5,0.3]
[1643692376817,1.53417831,2748.0,2747.6,0.1819]
[1643692379176,1.53417831,2748.0,2747.5,0.4819]
[1643692379580,1.53304825,2748.0,2747.6,1.6638118]
[1643692379779,1.53304825,2748.0,2747.6,1.9638118]
[1643692380982,1.53304825,2748.0,2747.6,1.20974]
[1643692381389,1.53304825,2748.0,2747.6,0.3]
[1643692381587,1.53304825,2748.0,2747.5,0.7819]
[1643692382087,1.86538404,2748.0,2747.5,0.4819]
[1643692382317,0.33233579,2748.0,2747.5,0.7819]
[1643692382525,3.7468,2748.1,2747.5,0.7819]
[1643692382721,3.9287,2748.1,2747.4,1.6]
[1643692383821,0.39607588,2748.0,2747.4,1.6]
[1643692384621,0.39607588,2748.0,2747.4,0.6]
[1643692386668,3.9287,2748.1,2747.4,0.6]
[1643692389275,3.9287,2748.1,2747.5,0.90979]
[1643692389473,3.9287,2748.1,2747.5,2.79605292]
[1643692389672,3.9287,2748.1,2747.6,0.3]
[1643692391012,3.7468,2748.1,2747.6,0.3]
[1643692392419,3.7468,2748.1,2747.6,2.18509316]
[1643692392641,3.7468,2748.1,2747.7,1.8194]
[1643692392927,2.30285673,2748.5,2747.8,3.124]
[1643692393119,7.44,2748.6,2747.9,0.1819]
[1643692393321,7.44,2748.6,2748.0,0.4429539]
[1643692393573,7.44,2748.6,2748.3,1.81898]
[1643692393770,7.44,2748.6,2748.3,1.2095]
[1643692394372,7.44,2748.6,2748.3,0.3]
[1643692394570,7.44,2748.6,2748.0,3.93795]
[1643692394775,7.44,2748.6,2748.3,0.90949]
[1643692394969,0.1819,2748.7,2748.3,0.90949]
[1643692395170,0.1819,2748.7,2748.3,1.20949]
[1643692397824,0.38317847,2748.8,2748.3,1.20949]
[1643692399324,0.1819,2748.9,2748.4,0.90943]
[1643692399538,1.53369,2748.8,2748.4,0.90943]
[1643692399826,1.53369,2748.7,2748.4,0.90943]
[1643692400123,1.53369,2748.6,2748.4,0.90943]
[1643692400323,0.68880423,2749.0,2748.4,0.90943]
[1643692400324,2.22249423,2749.0,2748.4,0.90943]
[1643692400526,1.53369,2748.9,2748.4,1.81886]
[1643692400724,1.53369,2748.8,2748.5,1.20941]
[1643692400925,1.53369,2748.7,2748.5,1.20941]
[1643692401177,1.53369,2748.6,2748.5,1.20941]
[1643692401372,7.65680564,2749.4,2748.5,1.20941]
[1643692401373,2.75730641,2749.9,2748.6,0.13819997]
[1643692401576,0.34804356,2749.7,2749.1,0.01243393]
[1643692401780,0.00294138,2750.1,2749.7,0.01224376]
[1643692401781,0.68570113,2750.1,2749.7,0.01224376]
[1643692401974,4.0886,2750.4,2749.9,0.81351177]
[1643692401975,0.68570113,2750.3,2749.9,0.81351177]
[1643692402177,3.9068,2750.4,2749.9,0.81351177]
[1643692402178,0.68570113,2750.4,2749.9,0.81351177]
[1643692402376,0.34359354,2750.0,2749.7,0.1817]
[1643692402677,6.75200113,2750.6,2749.9,0.90891]
[1643692402874,6.75200113,2750.6,2750.0,0.9089]
[1643692403074,4.38170113,2750.6,2750.1,0.90891]
[1643692403476,0.1817,2750.6,2750.1,0.90891]
[1643692403675,0.1817,2750.6,2750.1,1.81778]
[1643692403877,0.1817,2750.6,2750.1,3.75731575]
[1643692404077,0.1817,2750.9,2750.3,0.9089]
[1643692404277,0.1817,2750.9,2750.4,0.3]
[1643692404477,0.1817,2750.9,2750.4,1.0505815]
[1643692404918,0.1817,2750.9,2750.5,0.90887]
[1643692405218,0.1817,2750.9,2750.5,1.8177]
[1643692406417,0.1817,2751.3,2750.5,3.78372687]
[1643692406621,0.1817,2751.3,2750.7,1.81751]
[1643692406822,0.1817,2751.5,2750.8,2.0]
[1643692407024,0.01280838,2751.8,2751.1,0.01214732]
[1643692407025,0.1817,2751.8,2751.1,0.01214732]
[1643692407227,0.86740113,2752.4,2751.2,0.7057]
[1643692407429,1.67716598,2752.6,2751.2,0.7057]
[1643692407430,0.1817,2752.5,2752.0,0.86080907]
[1643692407627,0.38430377,2752.3,2751.5,0.95902091]
[1643692407826,0.38430377,2752.3,2751.9,0.90834]
[1643692408124,0.38430377,2752.3,2752.0,0.3]
[1643692408324,0.1817,2752.5,2752.0,0.3]
[1643692408980,0.1817,2752.5,2752.0,1.20828]
[1643692409380,0.39579675,2752.4,2752.0,0.99690398]
[1643692409984,0.1817,2752.5,2752.0,0.69690398]
[1643692410184,1.6059246,2752.6,2752.0,0.69690398]
[1643692410385,0.1816,2752.5,2752.0,0.69690398]
[1643692410589,0.1816,2752.5,2752.0,1.60515398]
[1643692410983,0.1816,2752.5,2752.0,0.69690398]
[1643692411587,2.0458088,2752.6,2752.0,0.69690398]
[1643692411785,0.1816,2752.5,2752.0,0.69690398]
[1643692411984,0.1816,2752.5,2752.0,0.6956077]
[1643692412820,1.6059246,2752.6,2752.1,0.1816]
[1643692413020,1.6059246,2752.6,2752.2,0.524]
[1643692413219,1.6059246,2752.6,2752.3,0.1816]
[1643692413419,1.6059246,2752.6,2752.4,0.524]
[1643692414320,1.6059246,2752.6,2752.0,0.524]
[1643692414522,1.6059246,2752.6,2751.5,1.81639]
[1643692414523,2.0,2752.5,2751.6,0.3]
[1643692414722,2.1816,2752.5,2751.3,0.524]